bitfinex-derivatives/quotes_ETHF0:USTF0_20250115
["timestamp","ask_amount","ask_price","bid_price","bid_amount"]
[1736900199268,0.30963,3230.8,3230.7,0.4498]
[1736900199467,0.30963,3230.8,3230.7,0.9138]
[1736900200666,0.9404,3231.2,3230.7,0.9138]
[1736900200862,0.30959,3231.2,3230.9,2.42985105]
[1736900201069,3.2078,3231.3,3230.9,2.42985105]
[1736900201269,0.3096,3231.0,3230.9,2.73946105]
[1736900201868,0.3096,3231.0,3230.9,2.42985105]
[1736900202268,0.30962,3230.8,3230.7,0.9138]
[1736900202466,0.30962,3230.8,3230.7,0.4498]
[1736900202668,0.30964,3230.6,3230.5,4.85348022]
[1736900203168,0.4581,3230.7,3230.3,2.90295105]
[1736900203369,0.30966,3230.4,3230.3,2.90295105]
[1736900203566,1.23219,3230.7,3230.2,3.2078]
[1736900203567,0.4581,3230.7,3230.2,3.2078]
[1736900203764,0.30967,3230.3,3230.2,3.2078]
[1736900203969,0.30968,3230.2,3230.1,2.92045105]
[1736900204366,0.30968,3230.2,3230.1,0.4906]
[1736900205076,0.4684,3230.4,3229.8,5.63765105]
[1736900205077,0.30971,3229.9,3229.8,6.10545105]
[1736900205282,0.30971,3229.9,3229.8,6.41517105]
[1736900205771,0.4788,3230.1,3229.8,6.41517105]
[1736900205977,0.30971,3229.9,3229.8,6.10545105]
[1736900206478,0.30971,3229.9,3229.8,3.2078]
[1736900206685,0.30973,3229.7,3229.6,0.465]
[1736900208682,0.4666,3229.9,3229.6,0.77474]
[1736900208683,0.30973,3229.8,3229.6,0.77474]
[1736900208882,3.5175,3230.0,3229.8,0.30972]
[1736900209078,0.3097,3230.0,3229.8,2.73957105]
[1736900209977,0.30971,3229.9,3229.8,2.42985105]
[1736900210175,0.30973,3229.7,3229.6,0.465]
[1736900214782,3.51751,3230.0,3229.9,0.30971]
[1736900214978,3.2078,3230.0,3229.6,0.465]
[1736900215178,0.4527,3229.9,3229.6,0.465]
[1736900215489,0.30973,3229.7,3229.6,0.465]
[1736900215983,0.30973,3229.8,3229.6,0.77473]
[1736900216482,0.30973,3229.7,3229.6,0.77473]
[1736900217180,0.76242,3229.9,3229.7,0.30972]
[1736900217682,0.30972,3229.8,3229.7,0.30972]
[1736900218379,0.30973,3229.7,3229.6,0.77474]
[1736900219382,0.30972,3229.8,3229.7,0.30973]
[1736900220176,0.4788,3230.1,3229.9,0.30971]
[1736900220382,0.3097,3230.0,3229.9,2.42985105]
[1736900220586,0.30972,3229.8,3229.7,0.30973]
[1736900220784,0.4788,3230.1,3229.8,0.30971]
[1736900220785,0.30972,3229.9,3229.8,0.30971]
[1736900221086,0.30973,3229.8,3229.7,0.30972]
[1736900221490,0.30972,3229.9,3229.8,0.30971]
[1736900222084,0.30972,3229.8,3229.7,0.30972]
[1736900222484,0.4788,3230.1,3229.6,2.89485105]
[1736900222691,0.30972,3229.8,3229.7,0.30972]
[1736900223187,0.4788,3230.1,3229.6,2.89485105]
[1736900223486,3.2078,3230.4,3229.9,2.42985105]
[1736900223689,0.9439,3230.7,3230.2,2.42985105]
[1736900223889,0.488,3230.7,3230.5,2.42985105]
[1736900224084,0.488,3230.7,3230.6,0.77554]
[1736900224291,3.2078,3230.8,3230.7,0.30963]
[1736900224695,3.2078,3230.8,3230.7,0.80653]
[1736900226392,0.9593,3231.4,3230.7,0.4969]
[1736900226691,0.9593,3231.4,3231.1,0.30959]
[1736900226892,0.3096,3231.1,3230.9,2.73946105]
[1736900227192,0.77404,3230.9,3230.1,7.28022033]
[1736900227399,0.30967,3230.3,3230.2,3.85256022]
[1736900227592,0.30968,3230.2,3230.1,4.93744033]
[1736900227892,9.24695453,3230.2,3230.1,1.78234183]
[1736900228098,9.24695453,3230.2,3229.1,5.63765105]
[1736900228099,13.93727453,3230.2,3229.0,9.70696044]
[1736900228300,0.30979,3229.1,3229.0,9.70696044]
[1736900228695,3.76650661,3229.1,3229.0,9.70696044]
[1736900229296,0.30982,3228.8,3228.6,0.4981]
[1736900229503,3.2078,3229.0,3228.6,0.4981]
[1736900229703,0.30982,3228.8,3228.6,0.4981]
[1736900229999,0.30982,3228.8,3228.6,0.80793]
[1736900230301,0.30983,3228.7,3228.6,0.4981]
[1736900232601,3.2078,3229.0,3228.6,0.4981]
[1736900232803,0.30982,3228.8,3228.6,0.80793]
[1736900233099,0.30977,3229.3,3229.0,0.30979]
[1736900233305,0.30977,3229.3,3229.1,0.482]
[1736900233496,3.47430341,3229.4,3229.2,0.30977]
[1736900233697,1.299,3229.6,3229.1,0.482]
[1736900233999,0.30976,3229.4,3229.1,0.79178]
[1736900234497,0.30976,3229.4,3229.2,0.30977]
[1736900234804,0.30976,3229.4,3229.1,0.482]
[1736900234805,1.299,3229.6,3229.1,0.482]
[1736900234994,0.30977,3229.3,3229.1,0.79178]
[1736900235195,0.30979,3229.1,3229.0,3.2078]
[1736900235398,0.30982,3228.8,3228.5,0.79284]
[1736900235696,0.30982,3228.8,3228.6,0.30983]
[1736900236397,0.30983,3228.7,3228.5,0.483]
[1736900236601,3.2078,3229.1,3228.5,0.483]
[1736900236797,0.30982,3228.8,3228.5,0.79284]
[1736900236994,0.30982,3228.8,3228.5,0.483]
[1736900237297,0.30983,3228.7,3228.5,0.483]
[1736900237796,3.2078,3229.1,3228.5,0.79284]
[1736900238004,0.30976,3229.4,3228.6,0.30983]
[1736900238197,0.30981,3228.9,3228.6,0.30983]
[1736900238803,0.30982,3228.8,3228.5,0.79284]
[1736900239301,3.30211619,3229.4,3228.5,0.79284]
[1736900240100,0.30983,3228.7,3228.5,0.79284]
[1736900240804,0.30983,3228.6,3228.5,0.483]
[1736900241201,0.30983,3228.7,3228.5,0.483]
[1736900241896,3.45612085,3229.2,3228.5,0.483]
[1736900242100,0.30983,3228.6,3228.5,0.483]
[1736900242397,0.30983,3228.6,3228.3,3.6652]
[1736900242398,3.2078,3229.1,3228.3,3.6652]
[1736900242603,0.30985,3228.4,3228.3,0.4574]
[1736900243500,3.2078,3228.7,3227.9,3.2078]
[1736900243703,0.30988,3228.1,3228.0,0.4693]
[1736900249104,2.948692,3228.6,3227.6,0.4556]
[1736900249303,0.30991,3227.8,3227.7,0.487]
[1736900252603,0.30992,3227.7,3227.6,0.4556]
[1736900254505,0.30991,3227.9,3227.7,0.30991]
[1736900254714,0.30991,3227.9,3227.7,0.30992]
[1736900255007,3.2078,3228.1,3227.6,0.4556]
[1736900255207,0.30992,3227.7,3227.6,0.4556]
[1736900255413,3.2078,3227.7,3227.0,3.2078]
[1736900255615,0.30997,3227.2,3227.1,0.973]
[1736900256410,0.77496,3227.1,3226.3,0.31005]
[1736900256612,0.31005,3226.4,3226.3,0.973]
[1736900256911,0.31004,3226.5,3226.3,1.28305]
[1736900257116,0.31004,3226.5,3226.3,1.28306]
[1736900257519,3.2078,3226.9,3226.3,0.973]
[1736900257813,0.31003,3226.6,3226.4,0.31004]
[1736900258014,0.31001,3226.8,3226.7,0.31002]
[1736900258314,0.31005,3226.4,3226.3,0.4985]
[1736900258919,0.31009,3225.9,3225.8,0.4888]
[1736900262916,0.31009,3225.9,3225.6,3.2078]
[1736900262917,0.31011,3225.7,3225.6,3.2078]
[1736900263211,0.31011,3225.7,3225.4,0.4552]
[1736900263212,0.31013,3225.5,3225.4,0.4552]
[1736900263417,0.31016,3225.2,3225.1,3.2078]
[1736900263716,6.73378578,3225.7,3224.3,3.44085382]
[1736900263717,3.2078,3225.3,3224.3,3.44085382]
[1736900263918,0.31024,3224.4,3224.3,0.487]
[1736900264115,4.30141578,3225.2,3224.3,0.487]
[1736900264116,0.31023,3224.5,3224.3,0.487]
[1736900264415,0.31024,3224.4,3224.3,0.487]
[1736900264617,3.2078,3224.9,3224.2,3.2078]
[1736900264819,3.2078,3224.9,3224.0,0.4556]
[1736900265018,0.31027,3224.1,3224.0,0.4556]
[1736900265613,3.2078,3224.3,3223.5,0.4694]
[1736900265816,0.31031,3223.7,3223.5,0.4694]
[1736900266616,0.31029,3223.9,3223.5,0.77972]
[1736900267123,0.31028,3224.0,3223.6,0.31032]
[1736900267313,0.31029,3223.9,3223.6,0.31032]
[1736900267628,3.54329033,3224.2,3223.5,0.4694]
[1736900268323,3.54329033,3224.2,3223.5,0.77972]
[1736900268510,0.3103,3223.9,3223.5,0.77972]
[1736900268715,3.54329033,3224.2,3223.5,0.77972]
[1736900268917,0.31028,3224.0,3223.5,0.77972]
[1736900269225,0.31028,3224.0,3223.6,0.31032]
[1736900269622,3.54329033,3224.2,3223.5,0.4694]
[1736900269822,0.31024,3224.4,3224.0,0.31027]
[1736900270020,1.288,3224.6,3224.1,0.4857]
[1736900270223,0.31025,3224.3,3224.1,0.4857]
[1736900270424,4.86855392,3224.6,3224.1,0.4857]
[1736900270727,0.31026,3224.2,3224.1,0.4857]
[1736900270920,0.31029,3223.9,3223.6,0.31031]
[1736900271127,0.3103,3223.8,3223.5,0.77972]
[1736900271421,3.2078,3224.3,3223.5,0.77972]
[1736900271422,0.31031,3223.7,3223.5,0.4694]
[1736900271626,0.31032,3223.5,3223.4,3.2078]
[1736900273631,1.281,3223.9,3223.4,3.2078]
[1736900273925,0.31032,3223.6,3223.4,3.2078]
[1736900274124,3.24951551,3223.7,3223.5,0.31032]
[1736900274421,0.31031,3223.8,3223.5,0.31032]
[1736900274626,1.281,3223.9,3223.4,3.2078]
[1736900274928,3.75813139,3223.7,3223.5,0.31032]
[1736900275127,0.31031,3223.7,3223.4,3.51813]
[1736900275725,1.281,3223.9,3223.4,3.2078]
[1736900276122,0.31031,3223.7,3223.5,0.31032]
[1736900276628,0.31031,3223.7,3223.4,3.2078]
[1736900276629,0.31031,3223.7,3223.4,3.51813]
[1736900277424,3.58446633,3223.8,3223.4,3.2078]
[1736900277624,0.31031,3223.7,3223.5,0.78462]
[1736900277825,0.31028,3224.0,3223.8,0.31029]
[1736900278131,0.3103,3223.8,3223.6,0.31031]
[1736900278631,3.2078,3224.2,3224.0,0.31027]
[1736900278826,3.51806,3224.2,3224.1,0.4594]
[1736900282128,3.2078,3224.2,3224.1,0.4594]
[1736900282327,3.2078,3224.2,3224.1,0.76967]
[1736900282529,3.51806,3224.2,3224.1,0.4594]
[1736900282930,0.31026,3224.2,3224.1,0.4594]
[1736900283329,3.2078,3225.1,3224.1,2.90000873]
[1736900283535,0.31019,3224.9,3224.7,0.3102]
[1736900283727,0.31019,3225.0,3224.8,0.3102]
[1736900283925,0.31019,3225.0,3224.9,0.95]
[1736900285435,3.2078,3225.1,3224.9,0.95]
[1736900285737,0.31014,3225.4,3225.2,0.31016]
[1736900285928,0.31016,3225.3,3225.1,0.31017]
[1736900286332,0.31016,3225.3,3225.2,0.31016]
[1736900286530,3.24477663,3225.4,3225.2,0.31016]
[1736900286736,3.2078,3225.9,3225.3,2.44060873]
[1736900287033,1.281,3226.2,3225.6,5.64840873]
[1736900287233,0.31009,3226.0,3225.7,1.2709]
[1736900287439,0.31009,3226.0,3225.8,0.3101]
[1736900288030,3.98288,3226.6,3225.7,0.9608]
[1736900288234,0.3101,3225.9,3225.7,1.27091]
[1736900288630,0.31008,3226.1,3225.8,0.3101]
[1736900288939,0.31009,3226.0,3225.8,0.3101]
[1736900289238,0.31009,3226.0,3225.7,0.9608]
[1736900289239,0.31009,3226.0,3225.7,1.27091]
[1736900290139,0.31009,3226.0,3225.8,0.3101]
[1736900290334,0.3101,3225.9,3225.7,1.27091]
[1736900290831,3.2702784,3226.5,3225.7,0.9608]
[1736900291036,0.3101,3225.8,3225.7,0.9608]
[1736900291236,0.3101,3225.9,3225.7,0.9608]
[1736900291439,0.77512,3226.4,3225.7,0.9608]
[1736900291627,0.3101,3225.8,3225.7,0.9608]
[1736900293934,0.3101,3225.8,3225.7,0.4612]
[1736900294136,0.31017,3225.2,3225.0,3.2078]
[1736900294335,0.31016,3225.3,3225.0,3.51798]
[1736900294935,0.31018,3225.0,3224.9,0.4707]
[1736900295240,4.18377371,3225.6,3224.9,0.4707]
[1736900295444,0.31018,3225.0,3224.9,0.4707]
[1736900296145,0.3102,3224.8,3224.7,0.4533]
[1736900296444,0.3102,3224.9,3224.7,0.4533]
[1736900296740,3.4146301,3225.2,3224.7,0.76351]
[1736900296940,3.4146301,3225.2,3224.7,0.4533]
[1736900297138,0.31017,3225.1,3224.7,0.4533]
[1736900297338,5.26306,3225.9,3224.8,2.95396006]
[1736900297540,3.2078,3225.9,3225.0,3.2078]
[1736900297844,3.56782322,3225.8,3225.1,2.95396006]
[1736900298045,0.31011,3225.8,3225.5,0.31012]
[1736900298243,0.31011,3225.8,3225.6,0.4894]
[1736900298546,0.31008,3226.1,3225.8,0.3101]
[1736900298739,0.31009,3226.0,3225.7,0.7953]
[1736900298936,0.31009,3226.0,3225.8,0.4776]
[1736900299243,0.31009,3226.0,3225.8,0.7877]
[1736900299433,0.31007,3226.2,3226.0,0.31008]
[1736900299742,3.34586851,3226.3,3225.8,0.4776]
[1736900299743,0.31007,3226.1,3225.9,0.31009]
[1736900300138,3.57267296,3226.6,3225.9,0.31009]
[1736900300341,0.31007,3226.2,3226.0,0.31008]
[1736900300640,0.31007,3226.1,3225.9,0.31009]
[1736900300841,3.50708568,3226.6,3225.8,3.6854]
[1736900301344,0.31004,3226.5,3226.3,0.31005]
[1736900301540,0.31004,3226.5,3226.4,0.4692]
[1736900304545,3.42497755,3226.5,3226.2,3.2078]
[1736900304845,0.31009,3225.9,3225.8,4.1608]
[1736900305644,7.40789755,3226.5,3225.4,3.2078]
[1736900305645,3.2078,3226.1,3225.4,3.2078]
[1736900305848,0.31013,3225.5,3225.4,3.2078]
[1736900306243,0.31015,3225.3,3225.2,0.9726]
[1736900307953,3.2078,3225.7,3225.2,4.1804]
[1736900308143,7.44676006,3226.3,3225.2,4.1804]
[1736900308448,3.51864722,3226.2,3225.4,2.95396006]
[1736900308652,0.31009,3226.0,3225.7,3.2078]
[1736900308851,0.31009,3226.0,3225.8,0.3101]
[1736900309044,3.51864722,3226.2,3225.7,3.2078]
[1736900309045,0.31009,3225.9,3225.7,3.51791]
[1736900310046,0.3101,3225.8,3225.7,3.2078]
[1736900310455,3.51864722,3226.2,3225.7,3.2078]
[1736900310754,0.3101,3225.8,3225.6,0.31012]
[1736900310954,3.2078,3226.2,3225.3,3.2078]
[1736900311154,0.31008,3226.1,3225.9,0.31009]
[1736900311348,0.31008,3226.1,3226.0,0.4872]
[1736900313064,3.2078,3226.2,3225.3,3.2078]
[1736900313258,0.31014,3225.5,3225.4,0.4947]
[1736900314053,6.44330009,3226.1,3225.4,0.4947]
[1736900314260,0.31013,3225.5,3225.4,0.4947]
[1736900315358,0.31013,3225.5,3225.4,4.01264]
[1736900315963,0.31013,3225.5,3225.4,3.7025]
[1736900319561,3.21352958,3226.1,3225.4,3.7025]
[1736900319762,0.31012,3225.6,3225.4,4.01263]
[1736900320062,3.52279571,3225.8,3225.4,3.7025]
[1736900320261,0.31011,3225.8,3225.4,3.7025]
[1736900320469,0.31011,3225.8,3225.7,0.31011]
[1736900321166,0.31012,3225.7,3225.5,0.31012]
[1736900321367,0.31012,3225.7,3225.4,3.7025]
[1736900322067,0.31012,3225.7,3225.5,0.31013]
[1736900322362,0.31008,3226.0,3225.5,0.31013]
[1736900322568,0.31012,3225.7,3225.6,0.31012]
[1736900322962,3.53327719,3225.9,3225.4,3.7025]
[1736900322963,3.2078,3226.2,3225.4,3.7025]
[1736900323157,0.31008,3226.1,3226.0,0.31008]
[1736900323466,3.2078,3226.2,3226.1,0.78017]
[1736900324560,3.51786,3226.2,3226.1,0.78017]
[1736900324867,0.31005,3226.4,3226.1,0.4701]
[1736900325065,6.05004832,3226.9,3226.2,3.6955]
[1736900325257,0.31001,3226.8,3226.4,2.43833958]
[1736900325462,0.31001,3226.8,3226.7,0.31002]
[1736900325667,0.31002,3226.7,3226.6,0.31002]
[1736900325868,6.05004832,3226.9,3226.5,0.31003]
[1736900326165,6.05004832,3226.9,3226.3,0.31005]
[1736900326166,0.31005,3226.5,3226.3,0.31005]
[1736900326669,0.31005,3226.4,3226.3,0.31005]
[1736900327663,0.31005,3226.4,3226.2,3.6955]
[1736900327664,0.31006,3226.3,3226.2,4.00556]
[1736900328173,0.31005,3226.4,3226.2,4.00556]
[1736900328368,0.31005,3226.4,3226.3,0.31006]
[1736900329071,0.31003,3226.6,3226.5,0.31004]
[1736900330161,3.5002592,3226.9,3226.4,2.43833958]
[1736900330362,6.05004832,3227.1,3226.7,2.43833958]
[1736900330575,6.05004832,3227.1,3227.0,0.30999]
[1736900331072,0.30998,3227.2,3227.0,0.30999]
[1736900331473,6.05004832,3227.4,3227.0,0.30999]
[1736900331669,0.30997,3227.2,3227.0,0.30999]
[1736900332373,0.30999,3227.0,3226.9,0.4513]
[1736900332766,3.64278671,3227.0,3226.9,0.4513]
[1736900332963,6.85058671,3227.0,3226.9,0.4513]
[1736900333478,3.64278671,3227.0,3226.9,0.4513]
[1736900333668,6.85058671,3227.0,3226.9,0.4513]
[1736900334571,6.85058671,3227.0,3226.5,3.2078]
[1736900334572,0.31003,3226.6,3226.5,3.2078]
[1736900334775,0.31003,3226.6,3226.5,3.6611]
[1736900334964,6.54059671,3227.0,3226.5,3.6611]
[1736900335167,0.31001,3226.8,3226.6,0.31002]
[1736900335566,0.31003,3226.6,3226.5,3.6611]
[1736900335969,3.23342115,3227.2,3226.5,3.6611]
[1736900336278,0.31001,3226.8,3226.6,0.31002]
[1736900336489,3.27768186,3227.2,3226.5,3.6611]
[1736900336777,3.27768186,3227.2,3226.5,3.97113]
[1736900337479,3.27768186,3227.2,3226.5,3.6611]
[1736900337778,0.31003,3226.6,3226.5,3.6611]
[1736900338279,0.31001,3226.8,3226.6,0.31002]
[1736900338476,0.31001,3226.8,3226.7,0.31002]
[1736900338780,0.31001,3226.8,3226.6,0.31002]
[1736900339082,6.05004832,3227.3,3226.7,2.43833958]
[1736900339272,6.05004832,3227.3,3227.2,0.30997]
[1736900339474,4.55024832,3227.3,3227.2,0.30997]
[1736900339777,3.05044832,3227.3,3227.2,0.30997]
[1736900340476,0.4575,3228.3,3227.2,5.0]
[1736900340673,0.30988,3228.2,3228.0,0.30989]
[1736900340874,0.30987,3228.2,3228.0,3.2078]
[1736900341266,0.30987,3228.2,3228.0,3.51769]
[1736900341473,0.4575,3228.3,3228.2,0.30987]
[1736900341673,0.30986,3228.3,3228.1,0.30988]
[1736900342676,0.30986,3228.3,3228.1,0.78418]
[1736900343068,0.30986,3228.3,3228.1,1.26908]
[1736900343575,3.6653,3228.8,3228.2,0.30987]
[1736900343576,0.30986,3228.4,3228.2,0.30987]
[1736900343772,0.30986,3228.3,3228.2,0.30987]
[1736900344283,0.30987,3228.2,3228.1,0.9592]
[1736900344485,3.30709949,3228.7,3228.1,0.9592]
[1736900344676,0.30987,3228.3,3228.1,1.26908]
[1736900345077,0.30987,3228.2,3228.1,1.26908]
[1736900345476,0.30987,3228.2,3228.1,0.9592]
[1736900348483,0.30987,3228.2,3228.1,1.26908]
[1736900348783,0.30987,3228.2,3228.1,0.9592]
[1736900349177,0.30987,3228.2,3228.1,1.26908]
[1736900349576,0.30986,3228.4,3228.2,0.30987]
[1736900349778,3.6653,3228.8,3228.1,3.39753958]
[1736900349779,0.30982,3228.7,3228.1,3.39753958]
[1736900349981,0.30984,3228.6,3228.4,2.43833958]
[1736900350283,3.6653,3228.8,3228.5,0.30984]
[1736900350582,0.30983,3228.7,3228.5,0.30984]
[1736900350977,0.30984,3228.5,3228.3,0.30986]
[1736900351283,3.6653,3228.8,3228.4,0.30985]
[1736900351284,0.30984,3228.6,3228.4,0.30985]
[1736900351480,0.30984,3228.6,3228.5,0.30984]
[1736900351681,0.30983,3228.7,3228.5,0.30984]
[1736900351985,0.30983,3228.6,3228.4,0.30985]
[1736900352381,0.3098,3229.0,3228.8,0.30981]
[1736900352582,3.6938,3229.3,3228.7,2.43833958]
[1736900352778,7.05949133,3229.3,3228.7,2.43833958]
[1736900352984,0.30981,3228.9,3228.7,2.74815958]
[1736900354278,7.05949133,3229.3,3228.4,5.64613958]
[1736900354484,0.30984,3228.5,3228.4,3.2078]
[1736900354981,0.30984,3228.5,3228.4,3.51765]
[1736900355680,0.30984,3228.5,3228.4,3.2078]
[1736900356085,0.30987,3228.3,3228.2,0.30987]
[1736900356582,0.30987,3228.3,3228.1,0.9592]
[1736900356583,0.30987,3228.2,3228.1,1.26908]
[1736900357384,0.30987,3228.2,3228.1,0.9592]
[1736900357982,0.30987,3228.2,3228.1,1.26908]
[1736900359390,0.4777,3228.4,3228.2,0.30987]
[1736900359391,0.30987,3228.3,3228.2,0.30987]
[1736900359588,6.42066958,3228.9,3228.6,0.30983]
[1736900359589,0.30983,3228.7,3228.6,0.30983]
[1736900359884,3.2078,3228.9,3228.1,4.17224958]
[1736900359885,3.51761,3228.9,3228.5,0.30984]
[1736900360089,0.30982,3228.8,3228.7,0.30982]
[1736900360482,3.2078,3228.9,3228.8,0.30982]
[1736900360789,3.51761,3228.9,3228.8,0.30982]
[1736900361586,0.30981,3228.9,3228.8,0.30982]
[1736900361992,0.4925,3229.3,3228.7,2.43833958]
[1736900362287,0.30981,3228.9,3228.8,0.79451]
[1736900362475,3.30678844,3229.2,3228.8,0.4847]
[1736900362788,0.3098,3229.0,3228.8,0.79451]
[1736900362992,0.3098,3229.0,3228.9,0.30981]
[1736900363289,0.4925,3229.3,3228.8,4.1601]
[1736900363589,0.30979,3229.1,3229.0,2.74812958]
[1736900364485,0.30981,3228.9,3228.8,3.6754]
[1736900365093,0.30981,3228.9,3228.8,3.98522]
[1736900366991,0.3098,3229.0,3228.9,0.3098]
[1736900367491,3.3686691,3229.2,3228.8,3.6754]
[1736900367492,0.30979,3229.1,3229.0,0.3098]
[1736900367691,0.3098,3229.0,3228.9,0.3098]
[1736900368284,0.3098,3229.0,3228.8,3.6754]
[1736900368285,3.3686691,3229.2,3228.8,3.6754]
[1736900368589,0.30979,3229.1,3228.9,0.3098]
[1736900368796,0.3098,3229.0,3228.9,0.3098]
[1736900368987,3.3686691,3229.2,3228.9,0.3098]
[1736900369387,3.3686691,3229.2,3228.8,3.6754]
[1736900369693,0.30981,3228.9,3228.8,3.6754]
[1736900369892,0.30981,3228.9,3228.8,3.98522]
[1736900370493,0.30981,3228.9,3228.8,3.6754]
[1736900370684,0.30981,3228.9,3228.8,3.2078]
[1736900371895,0.30987,3228.2,3228.1,2.92583958]
[1736900372793,0.30987,3228.2,3228.1,0.4875]
[1736900374693,0.30987,3228.2,3228.1,0.79738]
[1736900375784,0.4969,3228.6,3228.0,3.2078]
[1736900375785,0.77462,3228.5,3228.0,3.2078]
[1736900376091,0.30988,3228.1,3228.0,3.2078]
[1736900378190,0.4969,3228.6,3228.0,3.2078]
[1736900378395,0.30986,3228.4,3228.3,0.30986]
[1736900379091,3.295639,3228.5,3228.3,0.30986]
[1736900379291,0.30985,3228.4,3228.3,0.30986]
[1736900380087,3.295639,3228.5,3228.3,0.30986]
[1736900380287,0.30985,3228.4,3228.3,0.30986]
[1736900381801,0.30985,3228.4,3228.1,2.92833958]
[1736900381995,0.30987,3228.2,3228.1,3.23821958]
[1736900382297,0.30987,3228.2,3228.1,0.49]
[1736900383095,3.295639,3228.5,3227.9,0.4592]
[1736900383298,0.30989,3228.0,3227.9,0.4592]
[1736900383497,3.2078,3228.3,3227.5,2.92293958]
[1736900383698,0.30993,3227.6,3227.5,2.92293958]
[1736900383898,0.30993,3227.6,3227.5,3.23287958]
[1736900385102,0.4782,3227.9,3227.5,2.92293958]
[1736900385598,0.30993,3227.6,3227.5,3.23287958]
[1736900386505,0.4782,3227.9,3227.5,2.92293958]
[1736900386810,0.30991,3227.9,3227.7,0.30991]
[1736900388199,0.30993,3227.6,3227.5,2.92293958]
[1736900388402,0.77471,3228.1,3227.3,0.4962]
[1736900388598,0.77471,3228.1,3227.3,0.80616]
[1736900388599,0.30995,3227.4,3227.3,0.80616]
[1736900389901,0.30995,3227.4,3227.3,0.4962]
[1736900390303,0.30999,3227.0,3226.9,0.4746]
[1736900390500,0.31,3226.9,3226.8,8.35797985]
[1736900390700,0.4547,3227.3,3226.8,3.5178]
[1736900390899,0.31,3226.9,3226.8,3.5178]
[1736900391502,0.4547,3227.3,3226.8,3.2078]
[1736900391804,0.4547,3227.3,3227.0,0.30998]
[1736900392011,0.30999,3227.0,3226.9,2.43833958]
[1736900392706,0.30999,3227.0,3226.9,2.74833958]
[1736900392908,0.30999,3227.0,3226.9,2.43833958]
[1736900393501,0.31,3226.9,3226.8,3.5178]
[1736900393704,0.4547,3227.3,3226.8,3.2078]
[1736900393996,0.30997,3227.2,3227.0,0.30998]
[1736900394207,3.2078,3227.6,3226.9,2.43833958]
[1736900394409,0.30993,3227.6,3227.5,0.30994]
[1736900394702,6.02797279,3227.8,3227.3,2.43833958]
[1736900395002,0.4773,3228.0,3227.6,2.43833958]
[1736900395207,0.30991,3227.8,3227.7,0.30991]
[1736900396205,0.4773,3228.0,3227.7,0.30991]
[1736900396402,0.30992,3227.7,3227.6,5.64613958]
[1736900396609,0.30992,3227.7,3227.6,3.2078]
[1736900397097,0.4773,3228.0,3227.6,3.2078]
[1736900397301,0.30992,3227.8,3227.7,0.30991]
[1736900397705,0.30992,3227.8,3227.6,3.2078]
[1736900397906,0.30992,3227.8,3227.6,3.51773]
[1736900399198,0.30992,3227.7,3227.6,3.2078]
[1736900399604,0.4773,3228.0,3227.6,3.51773]
[1736900399810,0.30992,3227.8,3227.6,3.51773]
[1736900400010,0.30992,3227.8,3227.6,0.30993]
[1736900400703,0.30992,3227.7,3227.6,0.30993]
[1736900401704,0.4773,3228.0,3227.4,0.9888]
[1736900401705,0.30994,3227.5,3227.4,0.9888]
[1736900401908,0.30996,3227.3,3227.2,3.2078]
[1736900402501,0.77476,3227.9,3227.2,3.2078]
[1736900402706,3.73433958,3228.3,3227.4,2.43833958]
[1736900402707,3.98251,3228.1,3227.4,2.43833958]
[1736900403004,0.30993,3227.7,3227.6,0.30993]
[1736900403406,0.30993,3227.7,3227.5,0.9554]
[1736900403407,0.30993,3227.6,3227.5,0.9554]
[1736900403906,0.30993,3227.7,3227.5,1.26533]
[1736900404204,3.36104464,3228.0,3227.6,3.2078]
[1736900404409,0.3099,3228.0,3227.9,0.3099]
[1736900404714,3.7069,3228.1,3227.7,0.30992]
[1736900404908,0.30991,3227.8,3227.7,0.30992]
[1736900406114,0.4991,3228.1,3227.6,3.2078]
[1736900406315,0.30992,3227.7,3227.6,3.2078]
[1736900407117,3.72959222,3228.0,3227.4,2.918]
[1736900407318,0.30994,3227.5,3227.4,2.918]
[1736900408119,2.07076,3227.9,3227.1,3.6965]
[1736900408120,0.30997,3227.2,3227.1,3.2078]
[1736900408411,0.4882,3227.4,3227.1,3.51778]
[1736900408616,0.30997,3227.2,3227.1,3.51778]
[1736900408819,0.30997,3227.3,3227.1,3.51777]
[1736900409011,0.30997,3227.2,3227.1,3.51777]
[1736900409608,0.4882,3227.4,3227.1,3.51777]
[1736900409918,0.30997,3227.3,3227.2,0.30997]
[1736900410519,0.30995,3227.4,3227.3,0.30996]
[1736900410711,0.30995,3227.5,3227.3,0.30996]
[1736900411118,0.4947,3227.8,3227.2,2.43833958]
[1736900411318,0.4947,3227.8,3227.1,3.2078]
[1736900411513,0.30997,3227.2,3227.1,3.2078]
[1736900412624,0.30997,3227.2,3227.1,3.51778]
[1736900413222,0.30999,3227.1,3226.9,2.89933958]
[1736900413519,0.30999,3227.1,3227.0,0.30999]
[1736900415623,0.30999,3227.0,3226.9,0.461]
[1736900415827,0.31001,3226.8,3226.7,3.2078]
[1736900416120,0.31002,3226.7,3226.6,3.20225958]
[1736900416617,0.456,3227.0,3226.6,2.89223958]
[1736900416820,0.31001,3226.8,3226.7,0.31001]
[1736900417417,3.2078,3227.2,3226.6,2.89223958]
[1736900417617,7.27220271,3228.0,3227.1,5.64613958]
[1736900417823,6.37009892,3227.6,3227.5,2.74827958]
[1736900418223,0.4779,3227.9,3227.5,2.43833958]
[1736900418424,0.30993,3227.7,3227.6,3.51773]